Cogmind - Beta 9.1 @@@ ROGUE MODE // 2019.11.05 @ 13:21:36 Player: VikingSchism Result: Destroyed by Y-45 Defender with Beam Rifle Performance ------------- Evolutions (2) 1000 Regions Visited (3) 600 Robots Destroyed (22) 110 Value Destroyed (492) 492 Prototype IDs (0) 0 Alien Tech Used (0) 0 Bonus (8) 8 TOTAL SCORE: 2210 Bonus ------- High Alert Combat Kills 8 Cogmind --------- Core Integrity 0/550 Matter 81/300 Energy 76/100 System Corruption 0% Temperature Cool (9) Location -8/Materials Parts ------- Power (2) Propulsion (4) Utility (3) Improved Signal Interpreter Weapon (2) Inventory (4) Small Storage Unit Rocket Launcher Peak State ------------ Power Ion Engine Light Ion Engine Propulsion VTOL Module VTOL Module VTOL Module VTOL Module Utility Small Storage Unit Sensor Array Improved Signal Interpreter Weapon Particle Gun Rocket Launcher Inventory (Empty) [Rating: 18] Favorites ----------- Power Ion Engine Engine Ion Engine Propulsion VTOL Module Leg Aluminum Leg Flight Unit VTOL Module Utility Improved Signal Interpreter Device Sensor Array Storage Small Storage Unit Processor Improved Signal Interpreter Weapon Assault Rifle Energy Gun Particle Gun Ballistic Gun Assault Rifle Ballistic Cannon Light Cannon Launcher Rocket Launcher Build | -11 -10 -9 -8 ------- Run | Scr Mat Mat Mat Slots Evolved 4 | . . 2 2 Power 1 | . . . 1 Propulsion 2 | . . 1 1 Utility 1 | . . 1 . Weapon . | . . . . Parts Attached 23 | 6 6 7 4 Power 4 | 1 1 1 1 Engine 4 | 1 1 1 1 Core . | . . . . Reactor . | . . . . Propulsion 8 | 2 2 2 2 Treads . | . . . . Leg 2 | 2 . . . Wheel . | . . . . Hover . | . . . . Flight 6 | . 2 2 2 Utility 4 | 1 2 . 1 Device 1 | . 1 . . Storage 2 | 1 . . 1 Processor 1 | . 1 . . Hackware . | . . . . Protection . | . . . . Artifact . | . . . . Weapon 7 | 2 1 4 . Energy Gun 1 | . . 1 . Energy Cannon . | . . . . Ballistic Gun 3 | 2 . 1 . Ballistic Cannon 1 | . 1 . . Launcher 2 | . . 2 . Special Weapon . | . . . . Impact Weapon . | . . . . Slashing Weapon . | . . . . Piercing Weapon . | . . . . Special Melee Weapon . | . . . . Unidentified Prototypes . | . . . . Parts Lost 13 | . 1 2 10 Power 2 | . . . 2 Propulsion 5 | . . . 5 Utility 1 | . . . 1 Weapon 5 | . 1 2 2 Highest Loss Streak 10 | . 1 2 10 Average Slot Usage (%) 83 | . 91 84 58 Engine 11 | . 14 11 6 Leg 8 | . 14 . . Flight 19 | . 12 33 22 Device 7 | . 6 11 7 Storage 5 | . 7 . 6 Processor 8 | . 6 11 9 Energy Gun 1 | . . 3 1 Ballistic Gun 15 | . 25 5 . Ballistic Cannon 2 | . 2 3 . Launcher 2 | . . 5 4 Naked Turns . | . . . . Heaviest Build 20 | 12 13 13 20 Greatest Support 20 | 20 20 15 20 Greatest Overweight (x) 2 | 2 2 . 1 Average Overweight (x) . | . . . . Largest Inventory Capacity 6 | 6 6 4 6 Average Capacity 4 | 5 5 4 5 Most Carried 6 | 2 6 4 2 Average Carried 3 | 1 4 3 . Final Capacity 6 | 6 4 4 4 Final Carried 4 | 2 4 2 2 Class Distribution -------------------- 90% | Mutant 9% | Sprinter Dominant Class ---------------- Mutant | -10/Materials Mutant | -9/Materials Mutant | -8/Materials Resources | -11 -10 -9 -8 ----------- Run | Scr Mat Mat Mat Matter Collected 478 | 179 216 83 . Remotely . | . . . . Salvage Created 424 | . 216 208 . Parts 35 | . 15 20 . Haulers Intercepted . | . . . . Recyclers Shooed . | . . . . Parts Field Recycled . | . . . . Retrieved Matter . | . . . . Parts Self-Destructed . | . . . . Prevented . | . . . . Kills | -11 -10 -9 -8 ------- Run | Scr Mat Mat Mat Combat Hostiles Destroyed 22 | . 7 15 . Guns 8 | . 6 2 . Cannons 1 | . 1 . . AOE 13 | . . 13 . Classes Destroyed 2 | . 2 . . Swarmer 13 | . 3 10 . Grunt 9 | . 4 5 . Best Kill Streak 8 | . 3 8 . Combat Bots Only 8 | . 3 8 . Max Kills in Single Turn 3 | . 1 3 . Gunslinging . | . . . . Exploded 3 | . . 3 . Melee . | . . . . Uniques/NPCs Destroyed . | . . . . Combat | -11 -10 -9 -8 -------- Run | Scr Mat Mat Mat Damage Taken 1571 | . 456 276 839 Core 718 | . 70 88 560 Absorbed by Shields . | . . . . Core Remaining (%) 83 | 100 72 78 . Volleys Fired 64 | . 44 20 . Largest 2 | . 2 2 . Hottest 98 | . 55 98 . Shots Fired 116 | . 87 29 . Gun 98 | . 82 16 . Cannon 5 | . 5 . . Launcher 13 | . . 13 . Special . | . . . . Kinetic 93 | . 87 6 . Thermal 10 | . . 10 . Explosive 13 | . . 13 . Electromagnetic . | . . . . Robot Hit Streak 7 | . 6 7 . Robot Miss Streak 4 | . 4 2 . Penetration Max . | . . . . Secondary Targets 1 | . 1 . . Max Gunslinging Chain 1 | . 1 . . Shots Hit Robots 65 | . 50 15 . Core Hits 33 | . 13 19 1 Critical Hits . | . . . . Critical Kills . | . . . . Critical Parts Destroyed . | . . . . Melee Attacks . | . . . . Impact . | . . . . Slashing . | . . . . Piercing . | . . . . Sneak Attacks . | . . . . Combat Hostiles . | . . . . Follow-up Attacks . | . . . . Damage Inflicted 1573 | . 503 1062 8 Guns 596 | . 465 131 . Cannons 38 | . 38 . . Explosions 931 | . . 931 . Melee . | . . . . Ramming 8 | . . . 8 Kinetic 556 | . 503 53 . Thermal 78 | . . 78 . Explosive 931 | . . 931 . Electromagnetic . | . . . . Impact . | . . . . Slashing . | . . . . Piercing . | . . . . Highest Corruption . | . . . . Average Corruption . | . . . . Corruption Purged . | . . . . Overload Shots . | . . . . Overflow Damage 19 | . . 19 . Projectiles . | . . . . Explosions 19 | . . 19 . Melee . | . . . . Knockbacks 1 | . 1 . . Impact . | . . . . Kinetic 1 | . 1 . . Secondary . | . . . . Self-Inflicted Damage 4 | . . . 4 Shots . | . . . . Rammed 3 | . . . 3 Targets Rammed 3 | . . . 3 Kicked . | . . . . Crushed . | . . . . Highest Temperature 161 | . 18 161 12 Average Temperature 39 | . 7 72 6 Received Heat Transfer 564 | . 222 90 252 Siege Activations . | . . . . Robots Corrupted . | . . . . Combat Hostiles . | . . . . Parts Fried . | . . . . Impact Corruptions . | . . . . Robots Melted . | . . . . Combat Hostiles . | . . . . Parts Melted 2 | . . 2 . Heat Transferred 222 | . . 222 . Parts Sabotaged . | . . . . Parts Stolen . | . . . . Parts Stripped . | . . . . Power Chain Reactions . | . . . . Missiles Intercepted . | . . . . Alert | -11 -10 -9 -8 ------- Run | Scr Mat Mat Mat Peak Influence 485 | . 195 485 204 Average Influence 126 | . 89 221 180 Maximum Alert Level 2 | . . 2 1 Low Security (%) 83 | . . . . Level 1 12 | . . . . Level 2 4 | . . . . Level 3 . | . . . . Level 4 . | . . . . Level 5 . | . . . . High Security . | . . . . Max Security . | . . . . Squads Dispatched 3 | . . . 3 Investigation 2 | . . . 2 Extermination . | . . . . Reinforcement 1 | . . . 1 Assault . | . . . . Garrison . | . . . . Intercept . | . . . . Construction Impeded . | . . . . Haulers Reinforced . | . . . . Stealth | -11 -10 -9 -8 --------- Run | Scr Mat Mat Mat Distress Signals 7 | . 2 1 4 Communications Jammed . | . . . . Distress Signals . | . . . . Times Spotted 61 | . 12 19 30 Peak Tracking Total 23 | . 4 4 23 Tactical Retreats 4 | . 1 1 2 Traps | -11 -10 -9 -8 ------- Run | Scr Mat Mat Mat Traps Triggered 1 | . . . 1 Indirectly . | . . . . Trap Hack Attempts . | . . . . Triggered . | . . . . Disarmed . | . . . . Reprogrammed . | . . . . Reused . | . . . . Traps Extracted . | . . . . Installed . | . . . . Triggered . | . . . . Machines | -11 -10 -9 -8 ---------- Run | Scr Mat Mat Mat Machines Disabled 3 | . . 3 . Max in Single Turn 2 | . . 2 . Machines Sabotaged . | . . . . Garrisons Compromised . | . . . . Overloaded Fab Kills . | . . . . Fab Network Shutdowns . | . . . . Hacking | -11 -10 -9 -8 --------- Run | Scr Mat Mat Mat Machines Accessed 3 | . 1 1 1 Terminals 3 | . 1 1 1 Fabricators . | . . . . Repair Stations . | . . . . Recycling Units . | . . . . Scanalyzers . | . . . . Garrison Access . | . . . . Total Hacks 4 | . 1 1 2 Successful 2 | . 1 1 . Failed 2 | . . . 2 Catastrophic 1 | . . . 1 Database Lockouts . | . . . . Manual 2 | . 1 1 . Terminals 4 | . 1 1 2 Fabricators . | . . . . Repair Stations . | . . . . Recycling Units . | . . . . Scanalyzers . | . . . . Garrison Access . | . . . . Terminal Hacks 2 | . 1 1 . Level Access Points 2 | . 1 1 . Fabricator Hacks . | . . . . Repair Station Hacks . | . . . . Recycling Unit Hacks . | . . . . Scanalyzer . | . . . . Garrison Access Hacks . | . . . . Unauthorized Hacks . | . . . . Terminals . | . . . . Fabricators . | . . . . Repair Stations . | . . . . Recycling Units . | . . . . Scanalyzers . | . . . . Garrison Access . | . . . . Data Cores Recovered . | . . . . Used . | . . . . Hacking Detections 1 | . . . 1 Full Trace Events 1 | . . . 1 Feedback Events . | . . . . Feedback Blocked . | . . . . Robot Schematics Acquired . | . . . . Robots Built . | . . . . Matter . | . . . . Time . | . . . . Total Robot Build Rating . | . . . . Part Schematics Acquired . | . . . . Parts Built . | . . . . Matter . | . . . . Time . | . . . . Total Part Build Rating . | . . . . Parts Repaired . | . . . . Time . | . . . . Parts Recycled . | . . . . Recycled Matter . | . . . . Retrieved Matter . | . . . . Retrieved Components . | . . . . Parts Scanalyzed . | . . . . Part Schematics Acquired . | . . . . Parts Damaged . | . . . . Bothacking | -11 -10 -9 -8 ------------ Run | Scr Mat Mat Mat Used RIF Installer . | . . . . Robots Hacked . | . . . . Non-combat . | . . . . Combat . | . . . . Robot Hacks Applied . | . . . . Relay Couplers Released . | . . . . Robots Rewired . | . . . . Allies Hacked . | . . . . Hacks Repelled . | . . . . Allies | -11 -10 -9 -8 -------- Run | Scr Mat Mat Mat Total Allies . | . . . . Largest Group . | . . . . Highest-Rated Group . | . . . . Highest-Rated Ally . | . . . . Total Orders . | . . . . Ally Attacks . | . . . . Total Damage . | . . . . Kills . | . . . . Allies Corrupted . | . . . . Allies Melted . | . . . . Intel | -11 -10 -9 -8 ------- Run | Scr Mat Mat Mat Robot Analysis Total . | . . . . Derelict Logs Recovered . | . . . . Drone Launches . | . . . . Drone Recoveries . | . . . . Exploration | -11 -10 -9 -8 ------------- Run | Scr Mat Mat Mat Turns Passed 744 | 79 360 170 135 Spaces Moved 818 | 57 268 211 282 Core 41 | 13 . . 28 Treads . | . . . . Legs 131 | 44 87 . . Wheels . | . . . . Hover . | . . . . Flight 646 | . 181 211 254 Fastest Speed 31 | 50 37 34 31 Average Speed 50 | 119 64 34 36 Slowest Speed 200 | 150 200 34 100 Overloaded Moves . | . . . . Propulsion Burnouts . | . . . . Robots Hopped 20 | . 9 . 11 Cave-ins Triggered . | . . . . Exploration Rate (%) 26 | 3 41 26 37 Regions Visited 3 Branch Regions . Pre-discovered Areas . | . . . . Known Exits Taken 2 | . 1 1 . Unknown Exits Taken 1 | 1 . . . Scrap Searched . | . . . . Spaces Dug . | . . . . Terrain Destroyed 72 | . . 72 . Melee . | . . . . Projectile . | . . . . AOE 72 | . . 72 . Actions | -11 -10 -9 -8 --------- Run | Scr Mat Mat Mat Total 1013 | 64 368 279 302 Wait 102 | . 43 38 21 Move 778 | 56 250 210 262 Hop 17 | . 8 . 9 Pick Up 15 | 2 9 2 2 Fast Attach 10 | 6 2 1 1 Attach 10 | . 3 4 3 Detach 2 | . 1 . 1 Swap 3 | . 1 2 . Drop 9 | . 7 2 . Fire 64 | . 44 20 . Melee . | . . . . Ram 3 | . . . 3 Kick . | . . . . Crush . | . . . . Escape Stasis . | . . . . Rewire . | . . . . Trap . | . . . . Miscellaneous . | . . . . Route ------- -11/Scrapyard -10/Materials (discovered 3 exits: *Mat x3) -9/Materials (discovered 4 exits: *Mat x3 / [*Min]) -8/Materials (discovered 1 exit: *Sto) History --------- Turn | Location | Event 35 | -11/Scrapyard | Discovered new exit (range 16) 80 | -11/Scrapyard | Entered Materials 121 | -10/Materials | Identified exit to Materials 307 | -10/Materials | Build established: Mutant 440 | -10/Materials | Entered another Materials area 440 | -9/Materials | Evolved 2 slots: Propulsion x1, Utility x1 498 | -9/Materials | Identified exit to Materials 503 | -9/Materials | Discovered new exit (range 14) 557 | -9/Materials | Destroyed 7 combat bots 610 | -9/Materials | Entered another Materials area 610 | -8/Materials | Evolved 2 slots: Power x1, Propulsion x1 613 | -8/Materials | Destroyed 8 combat bots 639 | -8/Materials | Discovered new exit (range 6) 640 | -8/Materials | Identified exit to Storage 722 | -8/Materials | Core integrity fell below 50% 727 | -8/Materials | Core integrity fell below 20% 745 | -8/Materials | Destroyed by Y-45 Defender with Beam Rifle Last Messages --------------- 00712_ W-25 Informer sends out distress signal. 00712_ C-30 ARC bursts open, deploying its payload. 00712_ G-50 Soldier unfolds itself. 00712_ G-47 Trooper unfolds itself. [Achievement: Hunted] 00713_ VTOL Module destroyed. 00715_ ALERT: Hostiles spotted, dispatching reinforcements to Terminal M006. 00717_ Slammed into A-02 Transporter. 00717_ K-01 Serf collects debris. 00720_ K-01 Serf cleans the Atomic Centrifuge. 00721_ Sensor Array destroyed. 00721_ S-10 Pest destroyed. 00722_ Slammed into G-47 Trooper. 00724_ S-10 Pest destroyed. 00724_ K-01 Serf cleans the Atomic Centrifuge. 00731_ K-01 Serf collects debris. 00731_ Acquired VTOL Module. 00734_ K-01 Serf cleans the Fusion Modulator. 00742_ VTOL Module destroyed. Map ----- +----------------------------------------------------+ | ?????????????+ "%"""" +????????????????????????? | | ?????????????# " """ #????????????????????????? | | ?????????????# """ #????????????????????????? | | #????????????# #????????????????????????? | | #????????????# #????????????????????????? | | #????????????# """ #??+#????????????????????? | | #????????????# """ #?# #????????????????????? | | #????????????### """ #?# #????????????????????? | | #??????????????# #?# #????????????????????? | | #??????????????# ### ########?????????????? | | #?????????????# # ??????????????? | | =#?????????????# # """ ?#???????????? | | =#????????????## = # """"" #???????????? | | ##????????????# == # """"" #???????????? | | ??????????????# + """"" #???????????? | | ??????????????# # """ #???????????? | | ??????????????# " ###### #???????????? | | ??????????????# T ?# ! #???????????? | | ????????????? " ?# #???????????? | | ??????????? ?####/#####???????????? | | ?????????? ????# #???????????????? | | ?????????###+## ##### ???# #???????????????? | | ??????????????# ?????## ###??# #???????????????? | | ??????????????# ??????# #????# #???????????????? | | ??????????????# ??????# #????# #???????????????? | | ??????????????# ??????#@#?#### #???????????????? | | ??????????????# ???????# #?# #???????????????? | | ???????????????? ??????## ### #???????????????? | | ???????????????????????# ## #???????????????? | | ???????????????????????# Y #???????????????? | | ???????????????????????# #######???????????????? | | ???????????????????????# #?????????????????????? | | ??????????????????????# ?????????????????????? | | ??????????????????????#[[!!!?????????????????????? | | ??????????????????????#[[!!!!????????????????????? | | ??????????????????????#######????????????????????? | | ?????????????????????????????????????????????????? | | ?????????????????????????????????????????????????? | | ?????????????????????????????????????????????????? | | ?????????????????????????????????????????????????? | | ?????????????????????????????????????????????????? | | ?????????????????????????????????????????????????? | | ?????????????????????????????????????????????????? | | | | | | | | | | | | | | | +----------------------------------------------------+ Best States ------------- Heat Dissipation 31 Energy Generation 15 Energy Capacity 275 Matter Stores 236 Matter Capacity 300 Sight Range 16 Robot Scan Range 10 Terrain Scan Density 10 Evasion (%) 63 Item Schematics ----------------- None Robot Schematics ------------------ None Fabricated ------------ Nothing Alien Tech Used ----------------- None Achievements -------------- Hunted Challenges ------------ None Game ------ Seed CloakDispersionMapper Manual? 0 Play Time 00:18:53 Cumulative 17.0 hours Start 2019.11.05 @ 13:03:49 End 2019.11.05 @ 13:21:36 Sessions 1 Manual Loads 0 Difficulty Rogue Special Mode None Game No. 23 Rogue 23 Adventurer 0 Explorer 0 Win Type - Total 0 Types 0/0/0/0/0/0/0 Lore% 8 Gallery% 20 Achievement% 21 Wizard Run 0 Options --------- ASCII 0 Keyboard 1 Movement Numpad Keybinds 0 Fullscreen 1 Font 18/X11 Map View 76x50 Tactical HUD 1 Map Filters NONE Filters NONE Steam 1 RUN: e5c870e4-ab4e-4ab4-95af-e0f136df91ba